[Event "Polish Youth Ekstraliga 2022"]
[Site "Lublin"]
[Date "2022.06.27"]
[Round "3.27"]
[White "Krawczyk, Flawian"]
[Black "Wolak, Maciej"]
[Result "1-0"]
[ECO "A59"]
[WhiteElo "2212"]
[BlackElo "1316"]
[Annotator "RC"]
[PlyCount "67"]
[EventDate "2022.06.24"]
[EventType "team-tourn"]
[EventCountry "POL"]
[SourceTitle "playchess.com"]
[Source "ChessBase"]
[SourceQuality "1"]
[TimeControl "40/5400+30:1800+30"]

1. d4 {[%emt 0:00:03]} Nf6 {[%emt 0:00:07]} 2. c4 {[%emt 0:00:06]} c5 {[%emt 0:00:04]} 3. d5 {[%emt 0:00:05]} b5 {[%emt 0:00:17]} 4. cxb5 {[%emt 0:00:03]} a6 {[%emt 0:00:07]} 5. bxa6 {[%emt 0:00:05]} Bxa6 {[%emt 0:00:24]} 6. Nc3 {[%emt 0:00:09]} d6 {[%emt 0:00:49]} 7. e4 {[%emt 0:00:09]} Bxf1 {[%emt 0:00:13]} 8. Kxf1 {[%emt 0:00:05]} g6 {[%emt 0:01:33]} 9. Nf3 {[%emt 0:00:08]} Nbd7 {[%emt 0:01:02]} 10. g3 {[%emt 0:00:09]} Bg7 {[%emt 0:00:08]} 11. Kg2 {[%emt 0:00:05]} O-O {[%emt 0:02:15]} 12. Re1 {[%emt 0:00:03]} Qa5 {[%emt 0:09:06]} 13. Nd2 {[%emt 0:06:11]} Rfb8 {[%emt 0:04:40]} 14. a4 Ne8 {[%emt 0:14:31]} 15. Ra3 {[%emt 0:04:38]} Nc7 {[%emt 0:02:55]} 16. Qc2 {[%emt 0:03:19]} Na6 {[%emt 0:04:23]} 17. Nb5 {[%emt 0:03:49]} Nb4 {[%emt 0:01:33]} 18. Qb1 {[%emt 0:00:53]} Rc8 {[%emt 0:10:50]} 19. Nc4 {[%emt 0:02:59]} Qa6 {[%emt 0:01:22]} 20. b3 {[%emt 0:06:05]} Ne5 {[%emt 0:04:45]} 21. Rd1 {[%emt 0:06:24]} Nxc4 {[%emt 0:02:13]} 22. bxc4 {[%emt 0:00:04]} Qb7 {[%emt 0:12:46]} 23. Bb2 {[%emt 0:03:28]} Bxb2 {[%emt 0:00:54]} 24. Qxb2 {[%emt 0:00:02]} Ra5 {[%emt 0:00:25]} 25. e5 {[%emt 0:02:52]} Qd7 {[%emt 0:03:18]} 26. exd6 {[%emt 0:02:11]} exd6 {[%emt 0:00:04]} 27. Qf6 {[%emt 0:00:27]} Ra6 {[%emt 0:02:55]} 28. Re1 {[%emt 0:02:15]} Rf8 {[%emt 0:11:43]} 29. Re7 {[%emt 0:02:25]} Qf5 {[%emt 0:01:49]} 30. Qxf5 {[%emt 0:00:16]} gxf5 {[%emt 0:00:02]} 31. Rd7 {[%emt 0:00:25]} Rfa8 {[%emt 0:00:36]} 32. Nxd6 {[%emt 0:00:34]} Rxa4 {[%emt 0:00:50]} 33. Rxa4 {[%emt 0:00:04]} Rxa4 {[%emt 0:00:16]} 34. Nxf5 {[%emt 0:00:06]} 1-0

[Event "Polish Youth Ekstraliga 2022"]
[Site "Lublin"]
[Date "2022.06.27"]
[Round "3.28"]
[White "Kania, Franciszek"]
[Black "Sowinski, Pawel"]
[Result "0-1"]
[ECO "A05"]
[WhiteElo "1523"]
[BlackElo "2060"]
[Annotator "RC"]
[PlyCount "86"]
[EventDate "2022.06.24"]
[EventType "team-tourn"]
[EventCountry "POL"]
[SourceTitle "playchess.com"]
[Source "ChessBase"]
[SourceQuality "1"]
[TimeControl "40/5400+30:1800+30"]

1. Nf3 {[%emt 0:00:06]} Nf6 {[%emt 0:00:52]} 2. e3 {[%emt 0:00:09]} g6 {[%emt 0:01:28]} 3. b4 {[%emt 0:00:12]} Bg7 {[%emt 0:00:30]} 4. Bb2 {[%emt 0:00:08]} O-O {[%emt 0:00:52]} 5. Be2 {[%emt 0:00:52]} a5 {[%emt 0:02:29]} 6. b5 {[%emt 0:01:13]} b6 {[%emt 0:02:46]} 7. a4 {[%emt 0:01:16]} d6 {[%emt 0:00:44]} 8. O-O {[%emt 0:01:57]} Bb7 {[%emt 0:03:25]} 9. c4 {[%emt 0:02:06]} Nbd7 {[%emt 0:01:30]} 10. d4 {[%emt 0:02:10]} e6 {[%emt 0:02:05]} 11. Qb3 {[%emt 0:08:35]} Qe7 {[%emt 0:00:30]} 12. Nc3 {[%emt 0:07:14]} h6 {[%emt 0:03:14]} 13. Rfe1 {[%emt 0:02:08]} Ne4 {[%emt 0:12:15]} 14. Nxe4 {[%emt 0:01:13]} Bxe4 {[%emt 0:00:02]} 15. Nd2 {[%emt 0:00:46]} Bb7 {[%emt 0:00:10]} 16. Bf3 {[%emt 0:01:30]} Bxf3 {[%emt 0:00:26]} 17. Nxf3 {[%emt 0:00:06]} g5 {[%emt 0:02:33]} 18. Rac1 {[%emt 0:03:01]} e5 {[%emt 0:07:09]} 19. Ba3 {[%emt 0:10:28]} g4 {[%emt 0:04:57]} 20. Nd2 {[%emt 0:01:05]} Qg5 {[%emt 0:01:18]} 21. c5 {[%emt 0:04:58]} exd4 {[%emt 0:06:16]} 22. cxd6 {[%emt 0:01:27]} cxd6 {[%emt 0:00:04]} 23. Bxd6 {[%emt 0:07:57]} Rfe8 {[%emt 0:02:07]} 24. Bf4 {[%emt 0:01:26]} Qf5 {[%emt 0:00:48]} 25. Bd6 {[%emt 0:05:37]} Re6 {[%emt 0:03:35]} 26. e4 {[%emt 0:05:16]} Qg5 {[%emt 0:00:07]} 27. f4 {[%emt 0:01:59]} gxf3 {[%emt 0:01:16]} 28. Nxf3 {[%emt 0:00:13]} Qh5 {[%emt 0:04:55]} 29. Ba3 {[%emt 0:05:36]} Rae8 {[%emt 0:06:48]} 30. Rc7 {[%emt 0:02:49]} Ne5 {[%emt 0:03:51]} 31. Nxd4 {[%emt 0:06:28]} Ng4 {[%emt 0:05:56]} 32. Nf3 {[%emt 0:03:22]} Be5 {[%emt 0:02:57]} 33. Rd7 {[%emt 0:02:18]} Bxh2+ {[%emt 0:00:37]} 34. Kf1 {[%emt 0:00:05]} Bg3 {[%emt 0:00:09]} 35. Rc1 {[%emt 0:01:07]} Qh1+ {[%emt 0:00:17]} 36. Ng1 {[%emt 0:00:10]} Rf6+ {[%emt 0:00:05]} 37. Ke2 {[%emt 0:00:24]} Qxg2+ {[%emt 0:00:03]} 38. Kd3 {[%emt 0:00:18]} Qxe4+ {[%emt 0:00:18]} 39. Kc3 {[%emt 0:00:22]} Be5+ {[%emt 0:00:02]} 40. Kd2 {[%emt 0:00:00]} Rf2+ {[%emt 0:00:00]} 41. Kd1 {[%emt 0:00:17]} Qe1+ {[%emt 0:00:13]} 42. Kxe1 {[%emt 0:00:22]} Bc3+ {[%emt 0:00:01]} 43. Kd1 {[%emt 0:00:28]} Re1# {[%emt 0:00:03]} 0-1

[Event "Polish Youth Ekstraliga 2022"]
[Site "Lublin"]
[Date "2022.06.27"]
[Round "3.29"]
[White "Wikar, Martyna"]
[Black "Dylag, Emilia"]
[Result "1-0"]
[ECO "C75"]
[WhiteElo "2197"]
[BlackElo "2022"]
[Annotator "RC"]
[PlyCount "67"]
[EventDate "2022.06.24"]
[EventType "team-tourn"]
[EventCountry "POL"]
[SourceTitle "playchess.com"]
[Source "ChessBase"]
[SourceQuality "1"]
[TimeControl "40/5400+30:1800+30"]

1. e4 {[%emt 0:00:19]} e5 {[%emt 0:00:19]} 2. Nf3 {[%emt 0:00:07]} Nc6 {[%emt 0:00:10]} 3. Bb5 {[%emt 0:00:15]} a6 {[%emt 0:00:16]} 4. Ba4 {[%emt 0:00:06]} d6 {[%emt 0:00:23]} 5. c3 {[%emt 0:00:33]} Bd7 {[%emt 0:00:33]} 6. O-O {[%emt 0:01:01]} Nf6 {[%emt 0:02:17]} 7. Re1 {[%emt 0:01:46]} g6 {[%emt 0:03:24]} 8. d4 {[%emt 0:04:05]} Qe7 {[%emt 0:05:30]} 9. Nbd2 {[%emt 0:07:15]} b5 {[%emt 0:10:41]} 10. Bc2 {[%emt 0:03:24]} Bg7 {[%emt 0:01:05]} 11. Nf1 {[%emt 0:02:47]} O-O {[%emt 0:01:21]} 12. Ne3 {[%emt 0:02:45]} Rae8 {[%emt 0:10:24]} 13. d5 {[%emt 0:08:23]} Nd8 {[%emt 0:02:40]} 14. a4 {[%emt 0:05:37]} Ng4 {[%emt 0:13:33]} 15. axb5 {[%emt 0:01:57]} axb5 {[%emt 0:02:17]} 16. Ra7 {[%emt 0:03:05]} Nxe3 {[%emt 0:01:03]} 17. Bxe3 {[%emt 0:01:34]} f5 {[%emt 0:09:09]} 18. Bg5 {[%emt 0:02:10]} Bf6 {[%emt 0:01:39]} 19. Rxc7 {[%emt 0:04:44]} Bxg5 {[%emt 0:05:45]} 20. Nxg5 {[%emt 0:00:16]} Qxg5 {[%emt 0:00:49]} 21. Rxd7 {[%emt 0:00:08]} Rf6 {[%emt 0:04:53]} 22. exf5 {[%emt 0:05:38]} gxf5 {[%emt 0:00:14]} 23. Re3 {[%emt 0:00:06]} Rg6 {[%emt 0:08:36]} 24. Rg3 {[%emt 0:00:42]} Qf4 {[%emt 0:04:20]} 25. Rxd6 {[%emt 0:01:36]} Qxg3 {[%emt 0:01:50]} 26. hxg3 {[%emt 0:00:08]} Rxd6 {[%emt 0:00:05]} 27. Bxf5 {[%emt 0:00:14]} Re7 {[%emt 0:00:47]} 28. Qg4+ {[%emt 0:00:53]} Rg7 {[%emt 0:00:53]} 29. Qh5 {[%emt 0:00:36]} Rf7 {[%emt 0:02:18]} 30. Be4 {[%emt 0:01:09]} Re7 {[%emt 0:01:08]} 31. b3 {[%emt 0:00:51]} Nb7 {[%emt 0:00:41]} 32. Qg4+ {[%emt 0:00:32]} Kf8 {[%emt 0:00:17]} 33. c4 {[%emt 0:00:35]} bxc4 {[%emt 0:00:09]} 34. bxc4 {[%emt 0:00:07]} 1-0

[Event "Polish Youth Ekstraliga 2022"]
[Site "Lublin"]
[Date "2022.06.27"]
[Round "3.30"]
[White "Bandyk, Joanna"]
[Black "Natoli, Alessia"]
[Result "0-1"]
[ECO "B10"]
[WhiteElo "1360"]
[BlackElo "1680"]
[Annotator "NA RC"]
[PlyCount "112"]
[EventDate "2022.06.24"]
[EventType "team-tourn"]
[EventCountry "POL"]
[SourceTitle "playchess.com"]
[Source "ChessBase"]
[SourceQuality "1"]
[TimeControl "40/5400+30:1800+30"]

1. e4 {[%emt 0:00:04]} c6 {[%emt 0:01:34]} 2. Nf3 {[%emt 0:00:33]} d5 {[%emt 0:01:17]} 3. Nc3 {[%emt 0:00:30]} dxe4 {[%emt 0:01:31]} 4. Nxe4 {[%emt 0:00:49]} Nd7 {[%emt 0:01:24]} 5. d4 {[%emt 0:03:00]} Ngf6 {[%emt 0:01:21]} 6. Nxf6+ {[%emt 0:06:13]} Nxf6 {[%emt 0:00:43]} 7. Bd3 {[%emt 0:00:29]} e6 {[%emt 0:03:20]} 8. O-O {[%emt 0:00:58]} c5 {[%emt 0:08:32]} 9. Be3 {[%emt 0:11:14]} Qc7 {[%emt 0:05:54]} 10. Qd2 {[%emt 0:08:21]} Bd7 {[%emt 0:09:20]} 11. Bf4 {[%emt 0:06:33]} Bd6 {[%emt 0:04:38]} 12. Bxd6 {[%emt 0:00:58]} Qxd6 {[%emt 0:00:06]} 13. dxc5 {[%emt 0:01:46]} Qxc5 {[%emt 0:00:11]} 14. Rad1 {[%emt 0:01:34]} Bc6 {[%emt 0:08:22]} 15. b4 {[%emt 0:12:05]} Qb6 {[%emt 0:08:04]} 16. Ne5 {[%emt 0:03:23]} O-O {[%emt 0:03:01]} 17. Nxc6 {[%emt 0:05:52]} Qxc6 {[%emt 0:00:22]} 18. c4 {[%emt 0:00:33]} Rfd8 {[%emt 0:04:49]} 19. Qe3 {[%emt 0:02:05]} Qa4 {[%emt 0:05:25]} 20. a3 {[%emt 0:01:00]} g6 {[%emt 0:05:09]} 21. Be2 {[%emt 0:01:39]} Rd7 {[%emt 0:07:13]} 22. Qf3 {[%emt 0:04:12]} Ne8 {[%emt 0:02:36]} 23. Rxd7 {[%emt 0:01:57]} Qxd7 {[%emt 0:00:06]} 24. Rd1 {[%emt 0:00:06]} Qe7 {[%emt 0:00:43]} 25. Qd3 {[%emt 0:01:15]} Nf6 {[%emt 0:00:59]} 26. Bf3 {[%emt 0:01:36]} Re8 {[%emt 0:02:09]} 27. g3 {[%emt 0:01:22]} e5 {[%emt 0:01:58]} 28. Qd6 {[%emt 0:06:22]} Kg7 {[%emt 0:02:13]} 29. c5 {[%emt 0:02:11]} e4 {[%emt 0:01:52]} 30. Qxe7 {[%emt 0:01:17]} Rxe7 {[%emt 0:00:02]} 31. Be2 {[%emt 0:00:01]} Nd7 {[%emt 0:00:48]} 32. Kg2 {[%emt 0:02:24]} f5 {[%emt 0:00:53]} 33. Re1 {[%emt 0:02:54]} Ne5 {[%emt 0:00:54]} 34. Bb5 {[%emt 0:00:50]} a6 {[%emt 0:01:35]} 35. Ba4 {[%emt 0:00:09]} Nc4 {[%emt 0:01:52]} 36. Rd1 {[%emt 0:02:00]} Nxa3 {[%emt 0:01:04]} 37. Rd7 {[%emt 0:00:11]} Rxd7 {[%emt 0:00:54]} 38. Bxd7 {[%emt 0:00:01]} Nc2 {[%emt 0:00:11]} 39. Bc8 {[%emt 0:00:14]} Nxb4 {[%emt 0:00:15]} 40. Bxb7 {[%emt 0:00:00]} a5 {[%emt 0:00:00]} 41. f3 {[%emt 0:02:01]} exf3+ {[%emt 0:01:18]} 42. Bxf3 {[%emt 0:00:30]} Kf6 {[%emt 0:00:14]} 43. Be2 {[%emt 0:02:17]} Ke5 {[%emt 0:00:15]} 44. Bc4 {[%emt 0:00:34]} a4 {[%emt 0:00:30]} 45. Bg8 h6 {[%emt 0:00:18]} 46. Kf3 {[%emt 0:00:45]} a3 {[%emt 0:00:31]} 47. g4 {[%emt 0:00:44]} a2 {[%emt 0:00:18]} 48. Bxa2 {[%emt 0:00:06]} Nxa2 {[%emt 0:00:04]} 49. c6 {[%emt 0:00:10]} fxg4+ {[%emt 0:00:44]} 50. Kxg4 {[%emt 0:00:08]} Kd6 {[%emt 0:00:11]} 51. Kf4 {[%emt 0:00:20]} Nb4 {[%emt 0:00:06]} 52. c7 {[%emt 0:00:07]} Nd5+ {[%emt 0:00:09]} 53. Kg4 {[%emt 0:00:12]} Nxc7 {[%emt 0:00:05]} 54. h4 {[%emt 0:00:14]} Ke5 {[%emt 0:00:06]} 55. Kg3 {[%emt 0:00:35]} Kf5 {[%emt 0:00:04]} 56. Kh3 {[%emt 0:00:05]} Ke5 0-1

[Event "Polish Youth Ekstraliga 2022"]
[Site "Lublin"]
[Date "2022.06.28"]
[Round "4.1"]
[White "Czopor, Maciej"]
[Black "Ciborowski, Konrad Jr"]
[Result "1-0"]
[ECO "A04"]
[WhiteElo "2425"]
[BlackElo "1927"]
[Annotator "TA"]
[PlyCount "25"]
[EventDate "2022.06.24"]
[EventType "team-tourn"]
[EventCountry "POL"]
[SourceTitle "playchess.com"]
[Source "ChessBase"]
[SourceQuality "1"]
[TimeControl "40/5400+30:1800+30"]

{[%evp 9,25,23,40,32,39,16,54,52,206,202,362,353,332,355,330,278,287,285]} 1. Nf3 {[%emt 0:00:08]} f5 {[%emt 0:00:03]} 2. d3 {[%emt 0:00:06][%cal Bd2d3,Bd3d4,Bd4d5][%mdl 32]} Nc6 {[%emt 0:00:03]} 3. d4 {[%emt 0:00:12]} e6 {[%emt 0:00:04]} 4. g3 {[%emt 0:00:14]} Nf6 {[%emt 0:00:04]} 5. Bg2 {[%emt 0:00:08]} d6 {[%emt 0:00:07]} 6. c4 {[%emt 0:00:11] A04: Unusual lines after 1 Nf3 and King's Indian Attack.} g6 {[%emt 0:00:03]} 7. d5 {[%emt 0:00:29] [#]} Ne7 $146 {[%emt 0:07:55][%cal Re6d5]} ({Predecessor:} 7... Ne5 8. Nd4 exd5 9. cxd5 Qe7 10. Qa4+ Bd7 11. Qb3 Rb8 12. Nc6 Nxc6 13. dxc6 Be6 {1-0 (41) Steingrimsson,H (2548)-Escalante Ramirez,B (2423) Saint Louis 2019}) 8. dxe6 {[%emt 0:05:36] White is slightly better.} Nc6 $2 {[%emt 0:01:19] [#]} (8... Bxe6 $14 9. Nc3 Bg7) 9. Ng5 $18 {[%emt 0:12:25] Black must now prevent Nc3.} Rg8 $2 {[%emt 0:05:49]} (9... Bg7 10. Nf7 Qe7) 10. Qa4 {[%emt 0:10:20]} Ke7 {[%emt 0:00:08]} 11. Nc3 {[%emt 0:09:19]} Bxe6 {[%emt 0:05:48]} 12. Nxe6 {[%emt 0:00:48]} Kxe6 {[%emt 0:00:04]} 13. Bd5+ {[%emt 0:00:55] Black got outplayed after the opening.  Weighted Error Value: White=0.10 (very precise) /Black=0.78} 1-0

[Event "Polish Youth Ekstraliga 2022"]
[Site "Lublin"]
[Date "2022.06.28"]
[Round "4.2"]
[White "Wydmanski, Szymon"]
[Black "Luberanski, Jakub"]
[Result "0-1"]
[ECO "A06"]
[WhiteElo "1815"]
[BlackElo "2241"]
[Annotator "RC"]
[PlyCount "71"]
[EventDate "2022.06.24"]
[EventType "team-tourn"]
[EventCountry "POL"]
[SourceTitle "playchess.com"]
[Source "ChessBase"]
[SourceQuality "1"]
[TimeControl "40/5400+30:1800+30"]

1. Nf3 {[%emt 0:00:11]} d5 {[%emt 0:00:04]} 2. e3 {[%emt 0:00:07]} Nf6 {[%emt 0:00:06]} 3. c4 {[%emt 0:00:08]} c6 {[%emt 0:00:18]} 4. b3 {[%emt 0:00:56]} Bg4 {[%emt 0:00:23]} 5. Be2 {[%emt 0:00:19]} e6 {[%emt 0:00:13]} 6. Bb2 {[%emt 0:01:00]} Nbd7 {[%emt 0:00:13]} 7. d4 {[%emt 0:03:24]} Be7 {[%emt 0:03:24]} 8. Nbd2 {[%emt 0:00:44]} O-O {[%emt 0:00:15]} 9. O-O {[%emt 0:00:11]} a5 {[%emt 0:02:17]} 10. a3 {[%emt 0:05:31]} Qb8 {[%emt 0:02:03]} 11. Ne5 {[%emt 0:05:00]} Bxe2 {[%emt 0:00:20]} 12. Qxe2 {[%emt 0:00:15]} Nxe5 {[%emt 0:05:53]} 13. dxe5 {[%emt 0:00:10]} Nd7 {[%emt 0:00:04]} 14. f4 {[%emt 0:07:13]} dxc4 {[%emt 0:30:55]} 15. Qxc4 {[%emt 0:14:27]} Qa7 {[%emt 0:01:43]} 16. Rf3 {[%emt 0:12:27]} Qc5 {[%emt 0:03:30]} 17. Ne4 {[%emt 0:08:02]} Qxc4 {[%emt 0:01:24]} 18. bxc4 {[%emt 0:00:06]} Rfd8 {[%emt 0:04:58]} 19. Bd4 c5 {[%emt 0:10:27]} 20. Bc3 {[%emt 0:02:27]} Nb6 {[%emt 0:00:09]} 21. Rb1 {[%emt 0:01:00]} Nxc4 {[%emt 0:00:14]} 22. Rxb7 {[%emt 0:00:16]} Kf8 {[%emt 0:01:47]} 23. Ng5 {[%emt 0:15:34]} Rab8 {[%emt 0:09:16]} 24. Nxh7+ {[%emt 0:02:15]} Ke8 {[%emt 0:00:06]} 25. Rxb8 {[%emt 0:02:05]} Rxb8 {[%emt 0:00:03]} 26. e4 {[%emt 0:00:53]} a4 {[%emt 0:02:17]} 27. f5 {[%emt 0:02:27]} Rb3 {[%emt 0:05:05]} 28. f6 {[%emt 0:05:04]} gxf6 {[%emt 0:00:37]} 29. Nxf6+ {[%emt 0:00:21]} Bxf6 {[%emt 0:01:18]} 30. exf6 {[%emt 0:00:08]} Nxa3 {[%emt 0:02:12]} 31. h4 {[%emt 0:01:01]} Kf8 {[%emt 0:00:51]} 32. Rd3 {[%emt 0:11:51]} Kg8 {[%emt 0:00:41]} 33. Rd8+ {[%emt 0:00:53]} Kh7 {[%emt 0:00:06]} 34. Bd2 {[%emt 0:00:31]} Nc4 {[%emt 0:05:08]} 35. Bg5 {[%emt 0:00:00]} Kg6 {[%emt 0:01:40]} 36. h5+ {[%emt 0:00:00]} 0-1

[Event "Polish Youth Ekstraliga 2022"]
[Site "Lublin"]
[Date "2022.06.28"]
[Round "4.3"]
[White "Jaworski, Tymon"]
[Black "Wolak, Maciej"]
[Result "1/2-1/2"]
[ECO "D45"]
[WhiteElo "1628"]
[BlackElo "1316"]
[Annotator "NA RC"]
[PlyCount "100"]
[EventDate "2022.06.24"]
[EventType "team-tourn"]
[EventCountry "POL"]
[SourceTitle "playchess.com"]
[Source "ChessBase"]
[SourceQuality "1"]
[TimeControl "40/5400+30:1800+30"]

1. d4 {[%emt 0:00:03]} d5 {[%emt 0:00:07]} 2. c4 {[%emt 0:00:32]} c6 {[%emt 0:00:12]} 3. Nc3 {[%emt 0:00:49]} Nf6 {[%emt 0:00:16]} 4. e3 {[%emt 0:01:44]} e6 {[%emt 0:06:33]} 5. Nf3 {[%emt 0:02:48]} Bd6 {[%emt 0:02:08]} 6. Bd3 {[%emt 0:02:41]} O-O {[%emt 0:00:36]} 7. O-O {[%emt 0:01:13]} Qe7 {[%emt 0:01:26]} 8. b3 {[%emt 0:05:58]} Nbd7 {[%emt 0:04:04]} 9. cxd5 {[%emt 0:10:34]} exd5 {[%emt 0:05:03]} 10. Qc2 {[%emt 0:11:41]} Re8 {[%emt 0:05:47]} 11. a3 {[%emt 0:04:08]} Ne4 {[%emt 0:01:28]} 12. b4 {[%emt 0:03:11]} Ndf6 {[%emt 0:03:13]} 13. h3 {[%emt 0:02:58]} Nxc3 {[%emt 0:03:11]} 14. Qxc3 {[%emt 0:02:08]} Ne4 {[%emt 0:01:58]} 15. Qc2 {[%emt 0:10:33]} Bf5 {[%emt 0:05:08]} 16. Bb2 {[%emt 0:10:35]} f6 {[%emt 0:02:26]} 17. Nd2 {[%emt 0:06:28]} Qd7 {[%emt 0:01:18]} 18. Nxe4 {[%emt 0:03:09]} Bxe4 {[%emt 0:16:59]} 19. Bxe4 {[%emt 0:02:15]} Rxe4 {[%emt 0:00:15]} 20. Qe2 {[%emt 0:03:20]} Rae8 {[%emt 0:08:34]} 21. Rae1 {[%emt 0:04:10]} f5 {[%emt 0:02:33]} 22. Bc1 {[%emt 0:02:40]} Be7 {[%emt 0:03:55]} 23. Bd2 {[%emt 0:03:49]} Bf6 {[%emt 0:00:36]} 24. Qd3 {[%emt 0:00:38]} R4e7 {[%emt 0:04:57]} 25. a4 {[%emt 0:00:25]} a6 {[%emt 0:00:17]} 26. Rb1 {[%emt 0:01:08]} b5 {[%emt 0:01:30]} 27. axb5 {[%emt 0:00:17]} axb5 {[%emt 0:02:08]} 28. Ra1 {[%emt 0:00:23]} g6 {[%emt 0:03:04]} 29. Ra6 {[%emt 0:00:57]} Qe6 {[%emt 0:02:33]} 30. f4 {[%emt 0:00:47]} Rc8 {[%emt 0:00:56]} 31. Rc1 {[%emt 0:00:27]} Kf7 {[%emt 0:00:46]} 32. Qc2 {[%emt 0:00:50]} Rec7 {[%emt 0:00:16]} 33. Rca1 {[%emt 0:00:25]} Ke7 {[%emt 0:00:46]} 34. Ra7 {[%emt 0:01:09]} Kd7 {[%emt 0:00:27]} 35. R7a6 {[%emt 0:00:34]} Ke7 {[%emt 0:01:01]} 36. Rb6 {[%emt 0:00:25]} Kd7 {[%emt 0:00:47]} 37. Qd3 {[%emt 0:00:35]} Ke7 {[%emt 0:00:54]} 38. Raa6 {[%emt 0:00:33]} Qd7 {[%emt 0:02:10]} 39. Qc2 {[%emt 0:00:38]} Kf7 {[%emt 0:01:13]} 40. Kh2 {[%emt 0:00:00]} Kg7 {[%emt 0:00:00]} 41. Be1 {[%emt 0:06:40]} Qe8 {[%emt 0:12:39]} 42. Bd2 {[%emt 0:01:23]} Kf7 {[%emt 0:00:55]} 43. Kg1 {[%emt 0:03:41]} Ke7 {[%emt 0:06:09]} 44. Kf2 {[%emt 0:03:28]} Kd7 {[%emt 0:01:29]} 45. Kg1 {[%emt 0:05:24]} Bg7 {[%emt 0:05:01]} 46. Kh2 {[%emt 0:00:51]} Qe7 {[%emt 0:02:14]} 47. Qa2 {[%emt 0:02:49]} Bf8 {[%emt 0:04:54]} 48. Ra8 {[%emt 0:01:09]} Qd8 {[%emt 0:00:34]} 49. Ra7 {[%emt 0:03:05]} Qe8 {[%emt 0:01:35]} 50. Qa6 {[%emt 0:01:46]} Qd8 {[%emt 0:00:50]} 1/2-1/2

[Event "Polish Youth Ekstraliga 2022"]
[Site "Lublin"]
[Date "2022.06.28"]
[Round "4.4"]
[White "Kania, Franciszek"]
[Black "Ochedzan, Filip"]
[Result "1/2-1/2"]
[ECO "A06"]
[WhiteElo "1523"]
[BlackElo "1873"]
[Annotator "NA RC"]
[PlyCount "108"]
[EventDate "2022.06.24"]
[EventType "team-tourn"]
[EventCountry "POL"]
[SourceTitle "playchess.com"]
[Source "ChessBase"]
[SourceQuality "1"]
[TimeControl "40/5400+30:1800+30"]

1. Nf3 {[%emt 0:00:03]} d5 {[%emt 0:00:18]} 2. e3 {[%emt 0:00:32]} Nf6 {[%emt 0:00:10]} 3. c4 {[%emt 0:00:13]} dxc4 {[%emt 0:00:25]} 4. Bxc4 {[%emt 0:00:17]} e6 {[%emt 0:00:13]} 5. O-O {[%emt 0:00:19]} c5 {[%emt 0:01:01]} 6. b3 {[%emt 0:05:33]} a6 {[%emt 0:02:20] has lost popularity (6...Nc6).} 7. a4 {[%emt 0:04:43]} Nc6 {[%emt 0:01:59]} 8. d4 {[%emt 0:02:04]} cxd4 {[%emt 0:02:33]} 9. exd4 {[%emt 0:00:20]} Be7 {[%emt 0:01:28]} 10. Bb2 {[%emt 0:01:51]} Nb4 {[%emt 0:10:11]} 11. Ne5 {[%emt 0:02:38] [#]} Nbd5 $146 {[%emt 0:04:12]} ({Predecessor:} 11... O-O 12. Nc3 b6 13. Qf3 Qc7 14. Rac1 Bb7 15. Qg3 Qd6 16. Rcd1 Nbd5 17. Rfe1 Rac8 18. Ne4 Nxe4 19. Rxe4 Nf6 20. Ree1 {0-1 (45) Piscopo,P-Nironi,A Italy 1998}) 12. Qe2 {[%emt 0:02:17]} O-O {[%emt 0:03:56]} 13. Nd2 {[%emt 0:00:45]} Bd7 {[%emt 0:03:38]} 14. f4 {[%emt 0:05:17]} Rb8 {[%emt 0:07:57]} 15. Nxd7 {[%emt 0:10:21]} (15. Ne4 $11) 15... Qxd7 {[%emt 0:00:41]} 16. Rad1 {[%emt 0:04:32]} b5 {[%emt 0:06:38]} 17. axb5 {[%emt 0:00:14]} axb5 {[%emt 0:00:04]} 18. Bd3 {[%emt 0:00:20]} Bd6 {[%emt 0:03:20]} 19. g3 {[%emt 0:02:32]} Nb4 {[%emt 0:03:05]} (19... g6 $15) 20. Bb1 {[%emt 0:00:23]} Be7 {[%emt 0:05:15]} (20... g6 $142) 21. d5 {[%emt 0:17:31]} (21. f5 $11 {keeps the balance.}) 21... exd5 $15 {[%emt 0:09:10]} ({Black should try} 21... Qa7+ $17 22. Kh1 Nbxd5) 22. Nf3 {[%emt 0:14:49]} Bc5+ {[%emt 0:03:44]} 23. Kg2 {[%emt 0:00:40]} Qe6 {[%emt 0:05:58]} 24. Be5 {[%emt 0:04:07]} Rb7 {[%emt 0:02:15]} 25. Qb2 {[%emt 0:06:46]} h6 {[%emt 0:03:14]} 26. Rde1 {[%emt 0:01:28]} Qb6 {[%emt 0:02:25]} 27. Nh4 {[%emt 0:01:23]} Ne8 {[%emt 0:02:58]} 28. Nf5 {[%emt 0:04:50]} f6 {[%emt 0:01:26]} 29. Bc3 {[%emt 0:00:22]} Rbf7 {[%emt 0:05:24]} 30. Nh4 {[%emt 0:02:31]} Nd6 {[%emt 0:03:57]} 31. Ng6 {[%emt 0:01:11]} Re8 {[%emt 0:00:47]} 32. Rxe8+ {[%emt 0:00:09]} Nxe8 {[%emt 0:00:03]} 33. Re1 {[%emt 0:00:11]} Nc7 {[%emt 0:00:37]} 34. Qd2 {[%emt 0:00:55]} Qd6 {[%emt 0:03:46]} 35. Bd4 {[%emt 0:03:10]} Nc6 36. Bxc5 {[%emt 0:00:56]} Qxc5 {[%emt 0:02:08]} 37. Qe2 {[%emt 0:00:40]} Qd6 {[%emt 0:01:08]} 38. Bd3 {[%emt 0:00:53]} d4 {[%emt 0:00:24]} 39. Qf3 {[%emt 0:00:35]} f5 {[%emt 0:00:31]} 40. Rc1 {[%emt 0:00:00]} Ne7 {[%emt 0:00:00]} 41. Ne5 {[%emt 0:01:18]} Rf8 {[%emt 0:01:58]} 42. Kg1 {[%emt 0:03:47]} Rd8 {[%emt 0:11:11]} 43. Qb7 {[%emt 0:01:23]} Ncd5 {[%emt 0:01:03]} 44. Bxf5 {[%emt 0:03:52]} Ne3 {[%emt 0:03:12]} 45. Be4 {[%emt 0:01:24]} Rb8 {[%emt 0:02:17]} 46. Qa7 {[%emt 0:00:29]} Rf8 {[%emt 0:03:59]} 47. Rc7 {[%emt 0:03:35]} Qb4 {[%emt 0:01:48]} 48. Nf3 {[%emt 0:07:54]} Qxb3 {[%emt 0:04:27]} 49. Qxd4 {[%emt 0:01:03]} N7f5 {[%emt 0:00:23]} 50. Qd2 {[%emt 0:03:15]} Qe6 {[%emt 0:01:17]} 51. Ne5 {[%emt 0:02:36]} Qb6 {[%emt 0:01:05]} 52. Rb7 {[%emt 0:01:17]} Qd4 {[%emt 0:03:49]} 53. Qxd4 {[%emt 0:01:37]} Nxd4 {[%emt 0:00:02]} 54. Bd3 {[%emt 0:02:22]} Rc8 {[%emt 0:00:52]} 1/2-1/2